[Event "FIDE Women World Blitz 2021"]
[Site "Warsaw"]
[Date "2021.12.30"]
[Round "13.9"]
[White "Atalik, Ekaterina"]
[Black "Bodnaruk, Anastasia"]
[Result "0-1"]
[ECO "B07"]
[WhiteElo "2430"]
[BlackElo "2396"]
[Annotator "NA"]
[PlyCount "112"]
[EventDate "2021.12.29"]
[EventType "swiss"]
[EventCountry "POL"]
[Tiebreak "Cut1 Buchholz"]
[SourceTitle "playchess.com"]
[Source "ChessBase"]
[SourceQuality "1"]
[TimeControl "180+2"]

1. d4 {[%emt 0:00:01]} Nf6 {[%emt 0:00:00]} 2. Nf3 {[%emt 0:00:01]} g6 {
[%emt 0:00:01]} 3. g3 {[%emt 0:00:02]} Bg7 4. Bg2 {[%emt 0:00:01]} O-O {
[%emt 0:00:02]} 5. O-O {[%emt 0:00:02]} d6 {[%emt 0:00:00]} 6. Re1 {[%emt 0:00:
02]} Nbd7 {[%emt 0:00:10]} 7. e4 {[%emt 0:00:02]} e5 {[%emt 0:00:03]} 8. Nc3 {
[%emt 0:00:02]} Re8 {[%emt 0:00:07]} 9. dxe5 {[%emt 0:00:04]} dxe5 {[%emt 0:00:
06]} 10. h3 {[%emt 0:00:03]} c6 {[%emt 0:00:05]} 11. Be3 {[%emt 0:00:07]} Qc7 {
[%emt 0:00:01]} 12. Qd2 {[%emt 0:00:02]} Bf8 {[%emt 0:00:27]} 13. Rad1 {
[%emt 0:00:04]} Nc5 {[%emt 0:00:08]} 14. Nh2 {[%emt 0:00:21]} Ne6 {[%emt 0:00:
07]} 15. Ng4 {[%emt 0:00:05]} Nxg4 {[%emt 0:00:05]} 16. hxg4 {[%emt 0:00:02]}
Rd8 {[%emt 0:00:12]} 17. Qc1 {[%emt 0:00:04]} Nd4 {[%emt 0:00:00]} 18. f3 {
[%emt 0:00:18]} Be6 {[%emt 0:00:03]} 19. Kf2 {[%emt 0:00:05]} b5 {[%emt 0:00:
07]} 20. Rh1 {[%emt 0:00:05]} f6 {[%emt 0:00:06]} 21. Nb1 {[%emt 0:00:26]} c5 {
[%emt 0:00:16]} 22. c3 {[%emt 0:00:03]} Nc6 {[%emt 0:00:02]} 23. b3 {[%emt 0:
00:10]} b4 {[%emt 0:00:05]} 24. Rxd8 {[%emt 0:00:05]} Rxd8 {[%emt 0:00:00]} 25.
Rd1 {[%emt 0:00:02]} Rd7 {[%emt 0:00:27]} 26. Bf1 {[%emt 0:00:04]} a5 {[%emt 0:
00:15]} 27. Rxd7 {[%emt 0:00:06]} Qxd7 {[%emt 0:00:02]} 28. Qd2 {[%emt 0:00:02]
} Qxd2+ {[%emt 0:00:11]} 29. Bxd2 {[%emt 0:00:02]} a4 {[%emt 0:00:10]} 30. Bb5
{[%emt 0:00:15]} axb3 {[%emt 0:00:01]} 31. axb3 {[%emt 0:00:04]} Na5 {[%emt 0:
00:01]} 32. cxb4 {[%emt 0:00:25]} cxb4 {[%emt 0:00:01]} 33. Be3 {[%emt 0:00:06]
} Nxb3 {[%emt 0:00:03]} 34. Ke1 {[%emt 0:00:04]} Kf7 {[%emt 0:00:10]} 35. Kd1 {
[%emt 0:00:03]} Bc5 {[%emt 0:00:12]} 36. Bxc5 {[%emt 0:00:10]} Nxc5 {[%emt 0:
00:00]} 37. Nd2 {[%emt 0:00:01]} f5 {[%emt 0:00:18]} 38. gxf5 {[%emt 0:00:07]}
gxf5 {[%emt 0:00:00]} 39. exf5 {[%emt 0:00:02]} Bxf5 {[%emt 0:00:00]} 40. Nc4 {
[%emt 0:00:14]} Kf6 {[%emt 0:00:03]} 41. Nd2 {[%emt 0:00:05]} h5 {[%emt 0:00:
02]} 42. Kc1 {[%emt 0:00:02]} Nd3+ {[%emt 0:00:04]} 43. Bxd3 {[%emt 0:00:02]}
Bxd3 {[%emt 0:00:00]} 44. Kb2 {[%emt 0:00:01]} Kf5 {[%emt 0:00:06]} 45. Kb3 {
[%emt 0:00:02]} e4 {[%emt 0:00:01]} 46. fxe4+ {[%emt 0:00:04]} Bxe4 {[%emt 0:
00:01]} 47. Kxb4 {[%emt 0:00:02]} Bg2 {[%emt 0:00:02]} 48. Nc4 {[%emt 0:00:05]}
Kg4 {[%emt 0:00:01]} 49. Ne5+ {[%emt 0:00:02]} Kxg3 {[%emt 0:00:01]} 50. Ng6 {
[%emt 0:00:05]} Be4 {[%emt 0:00:01]} 51. Ne5 {[%emt 0:00:04]} h4 {[%emt 0:00:
01]} 52. Nc4 {[%emt 0:00:01]} h3 {[%emt 0:00:03]} 53. Ne3 {[%emt 0:00:01]} Bg2
{[%emt 0:00:04]} 54. Nf5+ {[%emt 0:00:03]} Kf4 {[%emt 0:00:03]} 55. Nh4 {
[%emt 0:00:03]} Bf1 {[%emt 0:00:05]} 56. Ng6+ {[%emt 0:00:02]} Ke4 {[%emt 0:00:
03]} 0-1

[Event "FIDE Women World Blitz 2021"]
[Site "Warsaw"]
[Date "2021.12.30"]
[Round "13.9"]
[White "Rudzinska, Michalina"]
[Black "Zabrzanska, Weronika"]
[Result "1-0"]
[ECO "C90"]
[WhiteElo "1832"]
[BlackElo "1596"]
[Annotator "NA"]
[PlyCount "41"]
[EventDate "2021.12.29"]
[EventType "swiss"]
[EventCountry "POL"]
[Tiebreak "Cut1 Buchholz"]
[SourceTitle "playchess.com"]
[Source "ChessBase"]
[SourceQuality "1"]
[TimeControl "180+2"]

1. e4 {[%emt 0:00:01]} e5 {[%emt 0:00:01]} 2. Nf3 {[%emt 0:00:01]} Nc6 {
[%emt 0:00:01]} 3. Bb5 {[%emt 0:00:01]} a6 {[%emt 0:00:00]} 4. Ba4 {[%emt 0:00:
01]} Nf6 {[%emt 0:00:02]} 5. d3 {[%emt 0:00:01]} b5 {[%emt 0:00:03]} 6. Bb3 {
[%emt 0:00:01]} d6 {[%emt 0:00:02]} 7. c3 {[%emt 0:00:02]} Be7 {[%emt 0:00:01]}
8. O-O {[%emt 0:00:02]} O-O {[%emt 0:00:03]} 9. Re1 {[%emt 0:00:02]} h6 {
[%emt 0:00:07]} 10. Nbd2 {[%emt 0:00:02]} Re8 {[%emt 0:00:03]} 11. Nf1 {
[%emt 0:00:01]} Bf8 {[%emt 0:00:07]} 12. Ng3 {[%emt 0:00:02]} Ne7 {[%emt 0:00:
05]} 13. Nh4 {[%emt 0:00:04]} Bb7 {[%emt 0:00:13]} 14. Qf3 {[%emt 0:00:03]} Nc6
{[%emt 0:00:41]} 15. Ngf5 {[%emt 0:00:14]} g5 {[%emt 0:00:14]} 16. Ng6 {
[%emt 0:00:03]} Na5 {[%emt 0:00:32]} 17. Nxf8 {[%emt 0:00:04]} Rxf8 {[%emt 0:
00:02]} 18. Nxh6+ {[%emt 0:00:02]} Kg7 {[%emt 0:00:23]} 19. Bxg5 {[%emt 0:00:
04]} Nxb3 {[%emt 0:00:02]} 20. axb3 {[%emt 0:00:02]} Rh8 {[%emt 0:00:02]} 21.
Ng4 {[%emt 0:00:06]} 1-0

[Event "FIDE Women World Blitz 2021"]
[Site "Warsaw"]
[Date "2021.12.30"]
[Round "13.10"]
[White "Zatonskih, Anna"]
[Black "Mamedjarova, Zeinab"]
[Result "0-1"]
[ECO "D23"]
[WhiteElo "2394"]
[BlackElo "2249"]
[Annotator "NA"]
[PlyCount "48"]
[EventDate "2021.12.29"]
[EventType "swiss"]
[EventCountry "POL"]
[Tiebreak "Cut1 Buchholz"]
[SourceTitle "playchess.com"]
[Source "ChessBase"]
[SourceQuality "1"]
[TimeControl "180+2"]

1. d4 {[%emt 0:00:01]} d5 {[%emt 0:00:03]} 2. c4 {[%emt 0:00:01]} dxc4 {
[%emt 0:00:04]} 3. Nf3 {[%emt 0:00:01]} Nf6 {[%emt 0:00:01]} 4. Qa4+ {[%emt 0:
00:01]} Nbd7 {[%emt 0:00:10]} 5. Nc3 {[%emt 0:00:07]} e6 {[%emt 0:00:03]} 6. e4
{[%emt 0:00:06]} a6 {[%emt 0:00:01]} 7. Qxc4 {[%emt 0:00:10]} b5 {[%emt 0:00:
01]} 8. Qd3 {[%emt 0:00:11]} Bb7 {[%emt 0:00:02]} 9. a3 {[%emt 0:00:50]} b4 {
[%emt 0:00:06]} 10. axb4 {[%emt 0:00:09]} Bxb4 {[%emt 0:00:00]} 11. e5 {
[%emt 0:00:09]} Ne4 {[%emt 0:00:04]} 12. Be2 {[%emt 0:00:12]} Nxc3 {[%emt 0:00:
48]} 13. bxc3 {[%emt 0:00:01]} Be7 {[%emt 0:00:20]} 14. O-O {[%emt 0:00:11]} a5
{[%emt 0:00:01]} 15. Ba3 {[%emt 0:00:16]} O-O {[%emt 0:00:11]} 16. Rfb1 {
[%emt 0:00:04]} Nb6 {[%emt 0:00:11]} 17. Qc2 {[%emt 0:00:19]} Bxa3 {[%emt 0:00:
25]} 18. Rxa3 {[%emt 0:00:01]} Qd5 {[%emt 0:00:01]} 19. Rb5 {[%emt 0:00:28]}
Qd7 {[%emt 0:00:15]} 20. Rbxa5 {[%emt 0:00:02]} Bxf3 {[%emt 0:00:15]} 21. Bxf3
{[%emt 0:00:01]} Rxa5 {[%emt 0:00:03]} 22. Rxa5 {[%emt 0:00:01]} g6 {[%emt 0:
00:04]} 23. h3 {[%emt 0:00:04]} Rb8 {[%emt 0:00:03]} 24. Qa2 {[%emt 0:00:03]}
Kg7 {[%emt 0:00:06]} 0-1

[Event "FIDE Women World Blitz 2021"]
[Site "Warsaw"]
[Date "2021.12.30"]
[Round "13.10"]
[White "Heredia Serrano, Carla"]
[Black "Zairbek kyzy, Begimai"]
[Result "1-0"]
[ECO "B11"]
[WhiteElo "2138"]
[BlackElo "1701"]
[Annotator "NA"]
[PlyCount "117"]
[EventDate "2021.12.29"]
[EventType "swiss"]
[EventCountry "POL"]
[Tiebreak "Cut1 Buchholz"]
[SourceTitle "playchess.com"]
[Source "ChessBase"]
[SourceQuality "1"]
[TimeControl "180+2"]

1. e4 {[%emt 0:00:01]} c6 {[%emt 0:00:00]} 2. Nc3 {[%emt 0:00:02]} d5 {[%emt 0:
00:01]} 3. Qf3 {[%emt 0:00:01]} Nf6 {[%emt 0:00:04]} 4. e5 {[%emt 0:00:01]}
Nfd7 {[%emt 0:00:07]} 5. Qg3 {[%emt 0:00:02]} e6 {[%emt 0:00:01]} 6. Nf3 {
[%emt 0:00:04]} a6 {[%emt 0:00:06]} 7. d4 {[%emt 0:00:16]} c5 {[%emt 0:00:01]}
8. Bd3 {[%emt 0:00:08]} Nc6 {[%emt 0:00:04]} 9. O-O {[%emt 0:00:36]} cxd4 {
[%emt 0:00:01]} 10. Ne2 {[%emt 0:00:01]} Qc7 {[%emt 0:00:11]} 11. Bf4 {[%emt 0:
00:05]} Qb6 {[%emt 0:00:18]} 12. Rab1 {[%emt 0:00:11]} g6 {[%emt 0:00:05]} 13.
h4 {[%emt 0:00:08]} h5 {[%emt 0:00:02]} 14. Rfd1 {[%emt 0:00:26]} Nc5 {[%emt 0:
00:27]} 15. Ng5 {[%emt 0:00:05]} Nxd3 {[%emt 0:00:27]} 16. Rxd3 {[%emt 0:00:01]
} Bg7 {[%emt 0:00:03]} 17. b3 {[%emt 0:00:12]} Nb4 {[%emt 0:00:06]} 18. Rd2 {
[%emt 0:00:15]} Nxa2 {[%emt 0:00:18]} 19. Nxd4 {[%emt 0:00:06]} Nb4 {[%emt 0:
00:04]} 20. Rbd1 {[%emt 0:00:15]} Bd7 {[%emt 0:00:06]} 21. Qf3 {[%emt 0:00:05]}
Rf8 {[%emt 0:00:09]} 22. Qg3 {[%emt 0:00:09]} Rc8 {[%emt 0:00:05]} 23. Nh7 {
[%emt 0:00:03]} Rh8 {[%emt 0:00:04]} 24. Nf6+ {[%emt 0:00:09]} Bxf6 {[%emt 0:
00:02]} 25. exf6 {[%emt 0:00:01]} Nc6 {[%emt 0:00:03]} 26. Be3 {[%emt 0:00:12]}
Qc7 {[%emt 0:00:07]} 27. Bf4 {[%emt 0:00:03]} Qd8 {[%emt 0:00:09]} 28. Be5 {
[%emt 0:00:06]} Nxe5 {[%emt 0:00:12]} 29. Qxe5 {[%emt 0:00:01]} Qc7 {[%emt 0:
00:01]} 30. Qe3 {[%emt 0:00:02]} Kf8 {[%emt 0:00:04]} 31. Nf3 {[%emt 0:00:01]}
Qc3 {[%emt 0:00:07]} 32. Qe5 {[%emt 0:00:02]} Qxe5 {[%emt 0:00:01]} 33. Nxe5 {
[%emt 0:00:01]} Be8 {[%emt 0:00:13]} 34. f4 {[%emt 0:00:05]} Kg8 {[%emt 0:00:
03]} 35. Nf3 {[%emt 0:00:01]} g5 {[%emt 0:00:14]} 36. fxg5 {[%emt 0:00:06]} Kh7
{[%emt 0:00:01]} 37. Ne5 {[%emt 0:00:01]} Rf8 {[%emt 0:00:02]} 38. Kf2 {
[%emt 0:00:02]} Bb5 {[%emt 0:00:01]} 39. Ke3 {[%emt 0:00:01]} Rc3+ {[%emt 0:00:
01]} 40. Kf2 {[%emt 0:00:05]} Kg8 {[%emt 0:00:03]} 41. Re1 {[%emt 0:00:01]}
Rfc8 {[%emt 0:00:01]} 42. Kg1 {[%emt 0:00:06]} Rxc2 {[%emt 0:00:02]} 43. Rxc2 {
[%emt 0:00:03]} Rxc2 {[%emt 0:00:01]} 44. Re3 {[%emt 0:00:02]} d4 {[%emt 0:00:
02]} 45. Re1 {[%emt 0:00:02]} d3 {[%emt 0:00:01]} 46. Nf3 {[%emt 0:00:05]} Rb2
{[%emt 0:00:06]} 47. Rd1 {[%emt 0:00:02]} Rxb3 {[%emt 0:00:03]} 48. Kf2 {
[%emt 0:00:01]} Rb4 {[%emt 0:00:01]} 49. Ke3 {[%emt 0:00:01]} Kh7 {[%emt 0:00:
01]} 50. Rd2 {[%emt 0:00:01]} Kg6 {[%emt 0:00:01]} 51. Ne5+ {[%emt 0:00:04]}
Kf5 {[%emt 0:00:03]} 52. Nxf7 {[%emt 0:00:00]} Rxh4 {[%emt 0:00:01]} 53. Nd6+ {
[%emt 0:00:00]} Kxg5 {[%emt 0:00:01]} 54. f7 {[%emt 0:00:00]} Rg4 {[%emt 0:00:
09]} 55. f8=Q {[%emt 0:00:02]} Rg3+ {[%emt 0:00:00]} 56. Kf2 {[%emt 0:00:02]}
Rg4 {[%emt 0:00:03]} 57. Qe7+ {[%emt 0:00:00]} Kf4 {[%emt 0:00:01]} 58. Qxe6 {
[%emt 0:00:03]} Bc6 {[%emt 0:00:02]} 59. Qf6# {[%emt 0:00:01]} 1-0

[Event "FIDE Women World Blitz 2021"]
[Site "Warsaw"]
[Date "2021.12.30"]
[Round "13.11"]
[White "Injac, Teodora"]
[Black "Salimova, Nurgyul"]
[Result "1/2-1/2"]
[ECO "E12"]
[WhiteElo "2387"]
[BlackElo "2353"]
[Annotator "NA"]
[PlyCount "105"]
[EventDate "2021.12.29"]
[EventType "swiss"]
[EventCountry "POL"]
[Tiebreak "Cut1 Buchholz"]
[SourceTitle "playchess.com"]
[Source "ChessBase"]
[SourceQuality "1"]
[TimeControl "180+2"]

1. d4 {[%emt 0:00:01]} e6 {[%emt 0:00:01]} 2. Nf3 {[%emt 0:00:02]} Nf6 {
[%emt 0:00:11]} 3. c4 {[%emt 0:00:01]} b6 {[%emt 0:00:03]} 4. a3 {[%emt 0:00:
01]} Bb7 {[%emt 0:00:01]} 5. Nc3 {[%emt 0:00:01]} Be7 {[%emt 0:00:16]} 6. d5 {
[%emt 0:00:01]} O-O {[%emt 0:00:10]} 7. g3 {[%emt 0:00:01]} exd5 {[%emt 0:00:
08]} 8. cxd5 {[%emt 0:00:01]} a5 {[%emt 0:00:17]} 9. Bg2 {[%emt 0:00:02]} Na6 {
[%emt 0:00:01]} 10. O-O {[%emt 0:00:05]} Nc5 {[%emt 0:00:04]} 11. Nd4 {[%emt 0:
00:06]} Re8 {[%emt 0:00:08]} 12. Bf4 {[%emt 0:00:05]} Bf8 {[%emt 0:00:24]} 13.
Ndb5 {[%emt 0:00:21]} d6 {[%emt 0:00:09]} 14. b4 {[%emt 0:00:30]} axb4 {
[%emt 0:00:02]} 15. axb4 {[%emt 0:00:00]} Rxa1 {[%emt 0:00:08]} 16. Qxa1 {
[%emt 0:00:01]} Nce4 {[%emt 0:00:25]} 17. Nxe4 {[%emt 0:00:22]} Nxe4 {[%emt 0:
00:01]} 18. Rc1 {[%emt 0:00:17]} Nf6 {[%emt 0:00:06]} 19. Nc3 {[%emt 0:01:26]}
h6 {[%emt 0:00:03]} 20. e4 {[%emt 0:00:02]} g6 {[%emt 0:00:27]} 21. Qb1 {
[%emt 0:00:02]} Bg7 {[%emt 0:00:03]} 22. Nb5 {[%emt 0:00:01]} Re7 {[%emt 0:00:
05]} 23. Qc2 {[%emt 0:00:02]} Ne8 {[%emt 0:00:13]} 24. Be3 {[%emt 0:00:01]} Ba6
{[%emt 0:00:02]} 25. Nd4 {[%emt 0:00:05]} Bb7 {[%emt 0:00:03]} 26. Nc6 {
[%emt 0:00:02]} Bxc6 {[%emt 0:00:02]} 27. Qxc6 {[%emt 0:00:02]} Nf6 {[%emt 0:
00:12]} 28. Ra1 {[%emt 0:00:01]} Kh7 {[%emt 0:00:02]} 29. Ra8 {[%emt 0:00:01]}
Qd7 {[%emt 0:00:01]} 30. f3 {[%emt 0:00:08]} Qxc6 {[%emt 0:00:04]} 31. dxc6 {
[%emt 0:00:00]} Nd5 {[%emt 0:00:04]} 32. Bd2 {[%emt 0:00:03]} Bd4+ {[%emt 0:00:
02]} 33. Kf1 {[%emt 0:00:02]} Ne3+ {[%emt 0:00:01]} 34. Bxe3 {[%emt 0:00:01]}
Bxe3 {[%emt 0:00:01]} 35. Ke2 {[%emt 0:00:02]} Bd4 {[%emt 0:00:01]} 36. Kd3 {
[%emt 0:00:01]} Bg1 {[%emt 0:00:02]} 37. h3 {[%emt 0:00:04]} Bh2 {[%emt 0:00:
01]} 38. g4 {[%emt 0:00:01]} g5 {[%emt 0:00:05]} 39. Bf1 {[%emt 0:00:04]} Kg7 {
[%emt 0:00:02]} 40. Be2 {[%emt 0:00:06]} Be5 {[%emt 0:00:01]} 41. Bd1 {[%emt 0:
00:01]} Re6 {[%emt 0:00:04]} 42. Bb3 {[%emt 0:00:02]} Rf6 {[%emt 0:00:01]} 43.
Ke2 {[%emt 0:00:00]} d5 {[%emt 0:00:04]} 44. Bxd5 {[%emt 0:00:02]} Bd6 {
[%emt 0:00:03]} 45. b5 {[%emt 0:00:01]} h5 {[%emt 0:00:03]} 46. Rd8 {[%emt 0:
00:01]} hxg4 {[%emt 0:00:02]} 47. hxg4 {[%emt 0:00:02]} Rh6 {[%emt 0:00:01]}
48. Kd3 {[%emt 0:00:03]} Rf6 {[%emt 0:00:02]} 49. Ke2 {[%emt 0:00:01]} Rh6 {
[%emt 0:00:01]} 50. Rd7 {[%emt 0:00:04]} Rf6 {[%emt 0:00:04]} 51. Bc4 {[%emt 0:
00:05]} Bf4 {[%emt 0:00:02]} 52. Bd5 {[%emt 0:00:02]} Bd6 {[%emt 0:00:01]} 53.
Rd8 {[%emt 0:00:02]} 1/2-1/2

[Event "FIDE Women World Blitz 2021"]
[Site "Warsaw"]
[Date "2021.12.30"]
[Round "13.12"]
[White "Shuvalova, Polina"]
[Black "Kovanova, Baira"]
[Result "1-0"]
[ECO "C84"]
[WhiteElo "2515"]
[BlackElo "2331"]
[Annotator "ChessBase"]
[PlyCount "83"]
[EventDate "2021.12.29"]
[EventType "swiss"]
[EventCountry "POL"]
[Tiebreak "Cut1 Buchholz"]
[SourceTitle "playchess.com"]
[Source "ChessBase"]
[SourceQuality "1"]
[TimeControl "180+2"]

1. e4 {[%emt 0:00:01]} e5 {[%emt 0:00:01]} 2. Nf3 {[%emt 0:00:01]} Nc6 {
[%emt 0:00:01]} 3. Bb5 {[%emt 0:00:01]} a6 {[%emt 0:00:01]} 4. Ba4 {[%emt 0:00:
02]} Nf6 {[%emt 0:00:02]} 5. O-O {[%emt 0:00:01]} Be7 {[%emt 0:00:01]} 6. d3 {
[%emt 0:00:02]} b5 {[%emt 0:00:12]} 7. Bb3 {[%emt 0:00:01]} d6 {[%emt 0:00:01]}
8. a3 {[%emt 0:00:02]} O-O {[%emt 0:00:10]} 9. Nc3 {[%emt 0:00:01]} Bg4 {
[%emt 0:00:19]} 10. Be3 {[%emt 0:00:10]} Nd4 {[%emt 0:00:39]} 11. Bxd4 {
[%emt 0:00:02]} exd4 {[%emt 0:00:01]} 12. Nd5 {[%emt 0:00:01]} c6 {[%emt 0:00:
16]} 13. Nxe7+ Qxe7 {[%emt 0:00:02]} 14. h3 {[%emt 0:00:11]} Bh5 {[%emt 0:00:
04]} 15. g4 {[%emt 0:00:39]} Nxg4 {[%emt 0:00:10]} 16. hxg4 {[%emt 0:00:01]}
Bxg4 {[%emt 0:00:01]} 17. Kg2 {[%emt 0:00:02]} Kh8 {[%emt 0:00:16]} 18. Qd2 {
[%emt 0:00:09]} f5 {[%emt 0:00:02]} 19. Nh2 {[%emt 0:00:07]} Qh4 {[%emt 0:00:
09]} 20. f3 {[%emt 0:01:03]} Bh3+ {[%emt 0:00:02]} 21. Kh1 {[%emt 0:00:02]}
Bxf1 {[%emt 0:00:05]} 22. Rxf1 {[%emt 0:00:02]} fxe4 {[%emt 0:00:01]} 23. dxe4
{[%emt 0:00:04]} Rae8 {[%emt 0:00:24]} 24. Qxd4 {[%emt 0:00:09]} d5 {[%emt 0:
00:01]} 25. Rg1 {[%emt 0:00:27]} Rf6 {[%emt 0:00:05]} 26. Rg4 {[%emt 0:00:15]}
Qe1+ {[%emt 0:00:18]} 27. Qg1 {[%emt 0:00:01]} Qxg1+ {[%emt 0:00:04]} 28. Kxg1
{[%emt 0:00:01]} dxe4 {[%emt 0:00:01]} 29. fxe4 {[%emt 0:00:01]} Rd6 {[%emt 0:
00:07]} 30. Nf3 {[%emt 0:00:04]} g6 {[%emt 0:00:06]} 31. e5 {[%emt 0:00:02]}
Rd1+ {[%emt 0:00:01]} 32. Kf2 {[%emt 0:00:01]} Kg7 {[%emt 0:00:01]} 33. Ke2 {
[%emt 0:00:03]} Rb1 {[%emt 0:00:03]} 34. Rd4 {[%emt 0:00:02]} Re7 {[%emt 0:00:
01]} 35. Rd6 {[%emt 0:00:03]} c5 {[%emt 0:00:01]} 36. Bd5 {[%emt 0:00:05]} Rxb2
{[%emt 0:00:02]} 37. Kd3 {[%emt 0:00:03]} Rb1 {[%emt 0:00:07]} 38. Kd2 {
[%emt 0:00:06]} a5 {[%emt 0:00:08]} 39. e6 {[%emt 0:00:02]} b4 {[%emt 0:00:02]}
40. axb4 {[%emt 0:00:02]} cxb4 {[%emt 0:00:01]} 41. Ne5 {[%emt 0:00:02]} Rh1 {
[%emt 0:00:05]} 42. Bxh1 {[%emt 0:00:01]} 1-0

[Event "FIDE Women World Blitz 2021"]
[Site "Warsaw"]
[Date "2021.12.30"]
[Round "13.12"]
[White "Brambilla, Renee Blandy T."]
[Black "Budkiewicz, Magdalena"]
[Result "0-1"]
[ECO "E61"]
[WhiteElo "1651"]
[BlackElo "1624"]
[Annotator "NA"]
[PlyCount "70"]
[EventDate "2021.12.29"]
[EventType "swiss"]
[EventCountry "POL"]
[Tiebreak "Cut1 Buchholz"]
[SourceTitle "playchess.com"]
[Source "ChessBase"]
[SourceQuality "1"]
[TimeControl "180+2"]

1. d4 {[%emt 0:00:01]} Nf6 {[%emt 0:00:01]} 2. c4 {[%emt 0:00:01]} g6 {[%emt 0:
00:00]} 3. Nc3 {[%emt 0:00:01]} Bg7 {[%emt 0:00:01]} 4. e4 {[%emt 0:00:02]} d6
{[%emt 0:00:01]} 5. Nf3 {[%emt 0:00:02]} O-O {[%emt 0:00:02]} 6. Be2 {[%emt 0:
00:03]} e5 {[%emt 0:00:02]} 7. O-O {[%emt 0:00:02]} Nbd7 {[%emt 0:00:02]} 8. d5
{[%emt 0:00:07]} Nc5 {[%emt 0:00:05]} 9. Bd3 {[%emt 0:00:11]} Bg4 {[%emt 0:00:
07]} 10. h3 {[%emt 0:00:01]} Bd7 {[%emt 0:00:02]} 11. Bg5 {[%emt 0:00:04]} h6 {
[%emt 0:00:02]} 12. Be3 {[%emt 0:00:01]} Nxd3 {[%emt 0:00:10]} 13. Qxd3 {
[%emt 0:00:02]} Nh5 {[%emt 0:00:04]} 14. Qd2 {[%emt 0:00:06]} Kh7 {[%emt 0:00:
03]} 15. Rac1 {[%emt 0:00:08]} Rc8 {[%emt 0:00:30]} 16. Ne2 {[%emt 0:00:03]}
Qe7 {[%emt 0:00:07]} 17. Ng3 {[%emt 0:00:04]} Nxg3 {[%emt 0:00:07]} 18. fxg3 {
[%emt 0:00:01]} f5 {[%emt 0:00:18]} 19. c5 {[%emt 0:00:11]} fxe4 {[%emt 0:00:
04]} 20. cxd6 {[%emt 0:00:01]} cxd6 {[%emt 0:00:02]} 21. Nh2 {[%emt 0:00:27]}
a6 {[%emt 0:00:20]} 22. Rxf8 {[%emt 0:00:04]} Qxf8 {[%emt 0:00:13]} 23. Rf1 {
[%emt 0:00:13]} Qe7 {[%emt 0:00:03]} 24. Qf2 {[%emt 0:00:21]} Kg8 {[%emt 0:00:
01]} 25. Qe2 {[%emt 0:00:11]} Rf8 {[%emt 0:00:10]} 26. Rxf8+ {[%emt 0:00:11]}
Qxf8 {[%emt 0:00:03]} 27. Qf2 {[%emt 0:00:05]} Qxf2+ {[%emt 0:00:03]} 28. Kxf2
{[%emt 0:00:02]} Bb5 {[%emt 0:00:00]} 29. Ng4 {[%emt 0:00:05]} h5 {[%emt 0:00:
04]} 30. Nh2 {[%emt 0:00:08]} Bc4 {[%emt 0:00:00]} 31. g4 {[%emt 0:00:17]} Bxa2
{[%emt 0:00:06]} 32. gxh5 {[%emt 0:00:06]} gxh5 {[%emt 0:00:01]} 33. Nf1 {
[%emt 0:00:11]} Bxd5 {[%emt 0:00:05]} 34. Ng3 {[%emt 0:00:02]} Bc6 {[%emt 0:00:
22]} 35. Nf5 {[%emt 0:00:04]} d5 {[%emt 0:00:04]} 0-1

[Event "FIDE Women World Blitz 2021"]
[Site "Warsaw"]
[Date "2021.12.30"]
[Round "13.13"]
[White "Kulon, Klaudia"]
[Black "Osmak, Yuliia"]
[Result "1-0"]
[ECO "A21"]
[WhiteElo "2328"]
[BlackElo "2198"]
[Annotator "NA"]
[PlyCount "77"]
[EventDate "2021.12.29"]
[EventType "swiss"]
[EventCountry "POL"]
[Tiebreak "Cut1 Buchholz"]
[SourceTitle "playchess.com"]
[Source "ChessBase"]
[SourceQuality "1"]
[TimeControl "180+2"]

1. c4 {[%emt 0:00:01]} f5 {[%emt 0:00:01]} 2. g3 {[%emt 0:00:01]} Nf6 {[%emt 0:
00:01]} 3. Bg2 d6 {[%emt 0:00:05]} 4. Nc3 {[%emt 0:00:01]} e5 {[%emt 0:00:09]}
5. d3 {[%emt 0:00:01]} g6 {[%emt 0:00:01]} 6. e4 {[%emt 0:00:02]} c6 {[%emt 0:
00:09]} 7. Nge2 {[%emt 0:00:03]} Bg7 {[%emt 0:00:01]} 8. O-O {[%emt 0:00:02]}
O-O {[%emt 0:00:01]} 9. exf5 {[%emt 0:00:01]} Bxf5 {[%emt 0:00:05]} 10. d4 {
[%emt 0:00:01]} Nbd7 {[%emt 0:00:09]} 11. h3 {[%emt 0:00:03]} Rc8 {[%emt 0:00:
51]} 12. b3 {[%emt 0:00:04]} Qa5 {[%emt 0:00:29]} 13. Bb2 {[%emt 0:00:11]} Rcd8
{[%emt 0:00:08]} 14. a3 {[%emt 0:00:05]} Qc7 {[%emt 0:00:03]} 15. Rc1 {[%emt 0:
00:07]} g5 {[%emt 0:00:04]} 16. g4 {[%emt 0:00:07]} Bg6 {[%emt 0:00:01]} 17.
Qd2 {[%emt 0:00:06]} h6 {[%emt 0:00:01]} 18. d5 {[%emt 0:00:11]} Nc5 {[%emt 0:
00:08]} 19. Qd1 {[%emt 0:00:13]} Nd3 {[%emt 0:00:10]} 20. Rc2 {[%emt 0:00:02]}
Nxb2 {[%emt 0:00:04]} 21. Rxb2 {[%emt 0:00:02]} c5 {[%emt 0:00:13]} 22. Ng3 {
[%emt 0:00:02]} e4 {[%emt 0:00:03]} 23. Re2 {[%emt 0:00:10]} Nxg4 {[%emt 0:00:
11]} 24. Nb5 {[%emt 0:00:01]} Qc8 {[%emt 0:00:06]} 25. hxg4 {[%emt 0:00:21]} a6
26. Nxd6 {[%emt 0:00:30]} Rxd6 {[%emt 0:00:02]} 27. Nxe4 {[%emt 0:00:05]} Bxe4
{[%emt 0:00:04]} 28. Rxe4 {[%emt 0:00:01]} Qc7 {[%emt 0:00:13]} 29. Qe2 {
[%emt 0:00:02]} Rf7 {[%emt 0:00:08]} 30. Re8+ {[%emt 0:00:01]} Bf8 {[%emt 0:00:
05]} 31. Be4 {[%emt 0:00:08]} Qd7 {[%emt 0:00:05]} 32. Bc2 {[%emt 0:00:08]}
Rdf6 {[%emt 0:00:04]} 33. Bf5 {[%emt 0:00:26]} Rxf5 {[%emt 0:00:05]} 34. gxf5 {
[%emt 0:00:01]} Qxf5 {[%emt 0:00:02]} 35. Qe6 Qf3 {[%emt 0:00:05]} 36. Qg6+ {
[%emt 0:00:06]} Rg7 {[%emt 0:00:01]} 37. Qe4 {[%emt 0:00:02]} Qxb3 {[%emt 0:00:
03]} 38. Re1 {[%emt 0:00:05]} Qc3 {[%emt 0:00:04]} 39. Rxf8+ {[%emt 0:00:03]}
1-0